fUSD/lending_fUSD_20240503
["ID","MTS","AMOUNT","RATE_DAILY","PERIOD"]
[325363968,1714752645563,-1199.68931936,0.00013,2]
[325363969,1714752645633,-264.52418651,0.00013,2]
[325363970,1714752645648,-3137.71297923,0.00013,2]
[325363971,1714752645678,-23527.44562485,0.00013,2]
[325363972,1714752645790,-13220.2,0.00013,2]
[325363973,1714752645801,-699.08250206,0.00013,2]
[325366107,1714753649440,-854.50571578,0.000107,2]
[325366108,1714753655888,-150.0,0.00010797,2]
[325366109,1714753655912,-407.36032122,0.00010798,2]
[325366110,1714753655936,-305.64014606,0.00010798,2]
[325366111,1714753655960,-427.59691009,0.00010798,2]
[325366112,1714753655983,-155.0,0.00010798,2]
[325366113,1714753656008,-155.0,0.00010798,2]
[325366114,1714753656033,-361.3699626,0.00010798,2]
[325366115,1714753656058,-374.4986591,0.00010798,2]
[325366116,1714753656531,-150.0,0.00010798,2]
[325366117,1714753671986,-378.0976665,0.000117,2]
[325366118,1714753672319,1500.0,0.00025,10]
[325366119,1714753677082,-210.0,0.00011877,2]
[325366686,1714753773984,198.213,0.000106,2]
[325366693,1714753812249,1988.25299907,0.000106,2]
[325366694,1714753812278,17706.30442803,0.000106,2]
[325366695,1714753816168,345.11801742,0.000106,2]
[325366696,1714753817351,20190.09888025,0.000106,2]
[325366697,1714753817994,1472.9954589,0.000106,2]
[325366698,1714753818624,1375.51452404,0.000106,2]
[325366699,1714753819318,155.0,0.000106,2]
[325366700,1714753820425,189.40020461,0.000106,2]
[325366701,1714753820527,399.62720428,0.000106,2]
[325366702,1714753820987,298.96206293,0.000106,2]
[325366703,1714753821032,560.02673411,0.000106,2]
[325366704,1714753822866,257.63723368,0.000106,2]
[325366705,1714753826248,19694.5574271,0.000106,2]
[325366730,1714753831761,-5921.25845259,0.00011877,2]
[325366732,1714753831775,-1241.72374471,0.00011877,2]
[325366735,1714753831854,-6865.79443773,0.00011877,2]
[325366736,1714753831959,1472.9954589,0.000106,2]
[325366737,1714753831975,-7305.399998,0.00011877,2]
[325366738,1714753831986,-468.98001,0.00011877,2]
[325366739,1714753831998,-746.56164777,0.00011877,2]
[325366740,1714753832008,-830.08689098,0.00011877,2]
[325366741,1714753832021,-791.24822385,0.00011877,2]
[325366742,1714753832051,-12721.53198031,0.00011877,2]
[325366743,1714753832061,-1560.32144644,0.00012763,2]
[325366745,1714753832070,-3497.72576639,0.00012793,2]
[325366746,1714753832079,-197.5464,0.000128,2]
[325366747,1714753832088,-4367.1031,0.00012887,2]
[325366748,1714753832097,-3455.7883,0.00012887,2]
[325366749,1714753832106,-3023.66450786,0.000129,2]
[325366750,1714753832134,-85010.96564049,0.000129,2]
[325366751,1714753832143,-671.52459727,0.000129,2]
[325366752,1714753832152,-206.71908165,0.000129,2]
[325366753,1714753832162,-167.02299764,0.000129,2]
[325366754,1714753832171,-74026.48354397,0.00012987,2]
[325366755,1714753832180,-5801.24606757,0.00012999,2]
[325366756,1714753832192,-994.06607205,0.00012999,2]
[325366758,1714753832203,-535.511,0.00012999,2]
[325366760,1714753832215,-621.77146932,0.00012999,2]
[325366790,1714753832493,-883.97785601,0.00012999,2]
[325366793,1714753832511,-450.25,0.00012999,2]
[325366878,1714753833304,180.21241663,0.000106,2]
[325366950,1714753834067,399.62720428,0.000106,2]
[325367003,1714753834987,298.96206293,0.000106,2]
[325367004,1714753835365,20190.09888025,0.000106,2]
[325367006,1714753835874,155.0,0.000106,2]
[325367007,1714753836160,345.11801742,0.000106,2]
[325367032,1714753837825,-1391.18950319,0.00012999,2]
[325367052,1714753837974,-6703.98803186,0.00012999,2]
[325367053,1714753837984,-1000.0,0.00012999,2]
[325367054,1714753837993,-2189.08372948,0.00013,2]
[325367055,1714753838007,-5101.000001,0.00013,2]
[325367056,1714753838023,-1309.14461714,0.00013,2]
[325367057,1714753838037,-10350.0,0.00013,2]
[325367058,1714753838050,-7716.1,0.00013,2]
[325367059,1714753838063,-3873.9,0.00013,2]
[325367067,1714753838213,-2896692.73041702,0.00013,2]
[325367068,1714753838224,-423551.89926276,0.00013,2]
[325367069,1714753838268,-5272.9073,0.00013,2]
[325367070,1714753838279,-2123.46875368,0.00013,2]
[325367083,1714753838495,-318.54331447,0.00013,2]
[325367085,1714753838506,-529.82133345,0.00013,2]
[325367087,1714753838518,-48868.43935615,0.00013,2]
[325367089,1714753838529,-14961.02039362,0.00013,2]
[325367092,1714753838550,-3146.71372053,0.00013,2]
[325367095,1714753838562,-3062.67819403,0.00013,2]
[325367225,1714753840047,-642.18873986,0.00013,2]
[325367226,1714753840074,-1785.71493991,0.00013,2]
[325367227,1714753840096,-2837.49205422,0.00013,2]
[325367228,1714753840110,-6535.5628858,0.00013,2]
[325367229,1714753840124,-822.73097487,0.00013,2]
[325367230,1714753840136,-1998.5,0.00013,2]
[325367231,1714753840148,-755.59133669,0.00013,2]
[325367232,1714753840163,-682.40557105,0.00013,2]
[325367233,1714753840175,-772.66499999,0.00013,2]
[325367234,1714753840186,-4195.12628968,0.00013,2]
[325367235,1714753840198,-1028.443,0.00013,2]
[325367236,1714753840210,-901.46094364,0.00013,2]
[325367237,1714753840221,-773.95903373,0.00013,2]
[325367238,1714753840233,-738.7893376,0.00013,2]
[325367239,1714753840244,-7368.96517219,0.00013,2]
[325367240,1714753840259,-2790.50268462,0.00013,2]
[325367241,1714753840378,-1589.01247894,0.00013,2]
[325367242,1714753840391,-1076.05428458,0.00013,2]
[325367243,1714753840403,-1927.64577303,0.00013,2]
[325367244,1714753840442,-1138.0,0.00013,2]
[325367245,1714753840453,-1102946.57724219,0.00013,2]
[325367246,1714753841286,257.63723368,0.000106,2]
[325367247,1714753841434,563.53571838,0.000106,2]
[325367249,1714753842578,1375.51452404,0.000106,2]
[325367260,1714753843000,-108624.53201388,0.00013,2]
[325367261,1714753843071,-925.86,0.00013,2]
[325367262,1714753843288,-6214.90870001,0.00013,2]
[325367263,1714753843302,-607412.8355525,0.00013,2]
[325367269,1714753844252,6427.28187087,0.000106,2]
[325367272,1714753845878,-786.21007,0.00013,2]
[325367273,1714753845890,-618.9,0.00013,2]
[325367274,1714753845955,-1115.352,0.00013,2]
[325367275,1714753845967,-408.25452,0.00013,2]
[325367276,1714753845978,-48826.50019701,0.00013,2]
[325367277,1714753846033,-907.21343641,0.00013,2]
[325367281,1714753849882,155.0,0.000106,2]
[325367283,1714753854098,564.79816639,0.000106,2]
[325367284,1714753855345,18782.64819195,0.000106,2]
[325367285,1714753856105,398.56477996,0.000106,2]
[325367287,1714753856996,298.96206293,0.000106,2]
[325367288,1714753858172,318.75693759,0.000106,2]
[325367289,1714753858560,1375.51452404,0.000106,2]
[325367290,1714753858852,257.63723368,0.000106,2]
[325367291,1714753865776,-600.0,0.00010798,2]
[325367293,1714753869885,155.0,0.000106,2]
[325367294,1714753877227,257.63723368,0.000106,2]
[325367295,1714753877287,257.98429414,0.000106,2]
[325367296,1714753880566,1371.87895332,0.000106,2]
[325367298,1714753892852,257.63723368,0.000106,2]
[325367299,1714753893883,155.0,0.000106,2]
[325367301,1714753908879,257.63723368,0.000106,2]
[325367302,1714753912010,242.82315435,0.000106,2]
[325367304,1714753924861,257.63723368,0.000106,2]
[325367306,1714753942864,257.63723368,0.000106,2]
[325367307,1714753946267,570.9396,0.000106,2]
[325367308,1714753960867,256.97087882,0.000106,2]
[325367312,1714754027024,151.56,0.00025227,120]
[325367328,1714754307960,-400.0,0.00010698,2]
[325367330,1714754347924,202.83,0.00021975,90]
[325367726,1714755032222,-150.0,0.00010797,2]
[325367727,1714755032232,-22.20002294,0.00010798,2]
[325367728,1714755032242,-111.90797766,0.00010798,2]
[325367729,1714755032368,-43.09202234,0.00010798,2]
[325367730,1714755032378,-161.68610321,0.00010798,2]
[325367731,1714755032388,-177.54622384,0.00010798,2]
[325367732,1714755032398,-3523.63926233,0.00010798,2]
[325367733,1714755032407,-155.0,0.00010798,2]
[325367734,1714755032416,-1785.98076718,0.00010798,2]
[325367735,1714755032425,-240.9133084,0.00010798,2]
[325367736,1714755032435,-155.0,0.00010798,2]
[325367737,1714755032444,-155.0,0.00010798,2]
[325367739,1714755032454,-872.50116565,0.00010798,2]
[325367741,1714755032462,-19459.30171804,0.00010798,2]
[325367743,1714755032471,-524.4986591,0.00010798,2]
[325367745,1714755032481,-210.0,0.00011877,2]
[325367747,1714755032490,-1560.32144644,0.00012767,2]
[325367749,1714755032499,-3378.3131338,0.00012783,2]
[325367751,1714755032508,-2396.4467838,0.000129,2]
[325367753,1714755032517,-4238.2775,0.000129,2]
[325367755,1714755032526,-1500.0,0.000129,2]
[325367757,1714755032535,-1500.0,0.000129,2]
[325367759,1714755032544,-1500.0,0.000129,2]
[325367761,1714755032554,-1500.0,0.000129,2]
[325367763,1714755032565,-1500.0,0.000129,2]
[325367765,1714755032574,-1500.0,0.000129,2]
[325367767,1714755032583,-1500.0,0.000129,2]
[325367769,1714755032592,-1626.84,0.000129,2]
[325367771,1714755032601,-1500.0,0.000129,2]
[325367773,1714755032610,-1500.0,0.000129,2]
[325367775,1714755032620,-172.55704512,0.000129,2]
[325367777,1714755032629,-523.0663,0.000129,2]
[325367779,1714755032638,-179.34240057,0.000129,2]
[325367781,1714755032647,-242.48,0.000129,2]
[325367783,1714755032656,-164.12115548,0.000129,2]
[325367785,1714755032666,-649.43817822,0.000129,2]
[325367787,1714755032675,-402.82279284,0.000129,2]
[325367788,1714755032684,-470.4090219,0.00012999,2]
[325367789,1714755032694,-848157.03286415,0.00013,2]
[325367790,1714755032706,-6566.03609594,0.00013,2]
[325367791,1714755032723,-7289.9674728,0.00013,2]
[325367792,1714755032734,-31740.49499823,0.00013,2]
[325367793,1714755032745,-22714.8706778,0.00013,2]
[325367794,1714755032756,-986.10310815,0.00013,2]
[325367795,1714755032769,-1566.59651049,0.00013,2]
[325367807,1714755032922,-9240.0,0.00013,2]
[325367809,1714755032934,-30190.64828256,0.00013,2]
[325367872,1714755038180,-16784.6335727,0.00013,2]
[325367873,1714755038290,-859.68278197,0.00013,2]
[325367874,1714755038302,-4146.10738395,0.00013,2]
[325367875,1714755038333,-2485.11247109,0.00013,2]
[325367876,1714755038345,-600.5,0.00013,2]
[325367877,1714755038372,-529.12011047,0.00013,2]
[325367878,1714755038383,-1237.47238105,0.00013,2]
[325367879,1714755038395,-1086.56026731,0.00013,2]
[325367880,1714755038408,-9399.01105783,0.00013,2]
[325367881,1714755038442,-1058.79672,0.00013,2]
[325367882,1714755038454,-1478.4084,0.00013,2]
[325367883,1714755038470,-414.1509541,0.00013,2]
[325367884,1714755038481,-300.32,0.00013,2]
[325367885,1714755038494,-2603.73299803,0.00013,2]
[325367886,1714755038509,-2896692.73041702,0.00013,2]
[325367887,1714755038521,-423551.89926276,0.00013,2]
[325367893,1714755040112,-397.000051,0.00010742,2]
[325367894,1714755040121,-315.23136108,0.00013,2]
[325367895,1714755040133,-629.68977339,0.00013,2]
[325367896,1714755040143,-1020.25782637,0.00013,2]
[325367897,1714755040156,-826.5816326,0.00013,2]
[325367898,1714755040291,-2016.91972236,0.00013,2]
[325367899,1714755040307,-3557.86121742,0.00013,2]
[325367900,1714755040324,-6757.96750055,0.00013,2]
[325367901,1714755040335,-32793.82785512,0.00013,2]
[325367902,1714755040349,-1617.592005,0.00013,2]
[325367903,1714755040360,-1363.68834929,0.00013,2]
[325367904,1714755040371,-455.64,0.00013,2]
[325367905,1714755040388,-360.68756511,0.00013,2]
[325367906,1714755040407,-16947.33383585,0.00013,2]
[325367907,1714755040496,-688.83939675,0.00013,2]
[325367908,1714755040507,-2167.88185688,0.00013,2]
[325367909,1714755040518,-902.96514375,0.00013,2]
[325367947,1714755043674,-7984.86786718,0.00013,2]
[325367948,1714755043686,-603.93402633,0.00013,2]
[325367949,1714755043706,-328889.87841143,0.00013,2]
[325367950,1714755043733,-1383.80611967,0.00013,2]
[325367951,1714755043744,-793.5883641,0.00013,2]
[325367952,1714755043770,-1678.93170684,0.00013,2]
[325367960,1714755046132,-2173.18993161,0.00013,2]
[325367961,1714755046144,-14843.9461843,0.00013,2]
[325367963,1714755046159,-309.93864,0.00013,2]
[325367966,1714755046200,-4628.02317642,0.00013,2]
[325367967,1714755046211,-967230.125745,0.00013,2]
[325367968,1714755046324,-134.21506303,0.00013,2]
[325367969,1714755046338,-298.655,0.00013,2]
[325367970,1714755046349,-459.4508895,0.00013,2]
[325367971,1714755046360,-782.08423587,0.00013,2]
[325367972,1714755046371,-584.74,0.00013,2]
[325367973,1714755046382,-31471.5,0.00013,2]
[325367974,1714755046397,-862.95308369,0.00013,2]
[325367975,1714755046407,-11262.44589035,0.00013,2]
[325367976,1714755046419,-10614.41574259,0.00013,2]
[325368009,1714755082267,152.0,0.0002508,120]
[325368027,1714755456147,170.57,9.22e-05,2]
[325368030,1714755491094,-1016.11454354,0.00010698,2]
[325368031,1714755491116,-262.55492136,0.00010798,2]
[325368032,1714755491138,-787.96593841,0.00010798,2]
[325368037,1714755598695,150.000001,0.00025,10]
[325368089,1714756232390,-500.0,0.00011254,2]
[325368090,1714756232400,-627.25,0.00011262,2]
[325368091,1714756232410,-468.75,0.00011269,2]
[325368092,1714756232419,-151.56,0.00011281,2]
[325368093,1714756232429,-200.0,0.00011283,2]
[325368094,1714756232438,-500.0,0.0001129,3]
[325368095,1714756232448,-258.8,0.00011304,2]
[325368096,1714756232458,-188.19,0.00011305,2]
[325368097,1714756232467,-11066.27,0.00011323,2]
[325368098,1714756232477,-67486.219998,0.00011335,2]
[325368099,1714756232488,-12277.580002,0.00011335,2]
[325368100,1714756232498,-1331.53,0.00011352,2]
[325368101,1714756232507,-1263.01,0.00011462,2]
[325368102,1714756232517,-250.0,0.00011472,2]
[325368103,1714756232526,-1268.52,0.00011472,2]
[325368104,1714756232535,-999.99,0.00011472,2]
[325368105,1714756232546,-521.81,0.00011472,2]
[325368106,1714756232555,-200.0,0.00011511,2]
[325368107,1714756232564,-200.03,0.00011515,2]
[325368108,1714756232577,-299.99,0.00011525,2]
[325368109,1714756232586,-1573.65,0.00011525,2]
[325368110,1714756232596,-1908.08,0.00011525,4]
[325368111,1714756232606,-150.0,0.00011549,2]
[325368112,1714756232616,-207.98,0.00011584,2]
[325368113,1714756232625,-227.22,0.00011615,2]
[325368114,1714756232635,-207.98,0.00011616,2]
[325368115,1714756232646,-207.98,0.00011648,2]
[325368116,1714756232655,-207.98,0.0001168,2]
[325368117,1714756232664,-207.98,0.00011711,2]
[325368118,1714756232673,-207.98,0.00011743,2]
[325368119,1714756232682,-207.98,0.00011775,2]
[325368120,1714756232692,-675.01,0.00011791,2]
[325368121,1714756232701,-207.98,0.00011807,2]
[325368122,1714756232710,-207.98,0.00011839,2]
[325368123,1714756232719,-207.98,0.0001187,2]
[325368124,1714756232729,-207.98,0.00011902,2]
[325368125,1714756232738,-207.98,0.00011934,2]
[325368126,1714756232747,-207.98,0.00011966,2]
[325368127,1714756232756,-499.99,0.00011967,2]
[325368128,1714756232766,-207.98,0.00011998,2]
[325368130,1714756232776,-2426.03,0.00011999,2]
[325368132,1714756232785,-207.98,0.00012029,2]
[325368134,1714756232794,-207.98,0.00012061,2]
[325368136,1714756232804,-207.98,0.00012093,2]
[325368138,1714756232813,-500.0,0.000121,4]
[325368140,1714756232824,-207.98,0.00012125,2]
[325368141,1714756232834,-207.98,0.00012156,2]
[325368142,1714756232843,-207.98,0.00012188,2]
[325368143,1714756232853,-1000.0,0.000122,4]
[325368144,1714756232862,-1500.0,0.000123,4]
[325368145,1714756232871,-2000.0,0.000124,4]
[325368146,1714756232881,-2500.0,0.000125,4]
[325368147,1714756232890,-500.0,0.000126,4]
[325368148,1714756232899,-156.54,0.0001266,2]
[325368149,1714756232909,-156.54,0.00012664,2]
[325368150,1714756232919,-156.54,0.00012668,2]
[325368151,1714756232929,-156.54,0.00012672,2]
[325368152,1714756232939,-156.54,0.00012676,2]
[325368153,1714756232948,-156.54,0.0001268,2]
[325368154,1714756232958,-156.54,0.00012684,2]
[325368155,1714756232968,-156.54,0.00012688,2]
[325368156,1714756232978,-156.54,0.00012692,2]
[325368157,1714756232988,-156.54,0.00012696,2]
[325368158,1714756232997,-156.54,0.000127,2]
[325368159,1714756233006,-500.0,0.000127,4]
[325368160,1714756233016,-156.54,0.00012704,2]
[325368161,1714756233025,-156.54,0.00012708,2]
[325368162,1714756233035,-156.54,0.00012711,2]
[325368163,1714756233045,-156.54,0.00012715,2]
[325368164,1714756233054,-156.54,0.00012719,2]
[325368165,1714756233063,-156.54,0.00012723,2]
[325368166,1714756233079,-1597.67694062,0.00012737,2]
[325368167,1714756233089,-500.0,0.000128,4]
[325368168,1714756233099,-150.0,0.00012862,2]
[325368169,1714756233110,-2500.0,0.00012891,2]
[325368170,1714756233120,-150.0,0.00012897,2]
[325368171,1714756233130,-5349.75972135,0.000129,2]
[325368172,1714756233139,-172.69804773,0.000129,2]
[325368173,1714756233149,-500.0,0.000129,4]
[325368174,1714756233160,-4246.09249635,0.000129,2]
[325368175,1714756233170,-434.34013597,0.000129,2]
[325368176,1714756233180,-49.21265592,0.000129,2]
[325368177,1714756233197,-130.12974465,0.000129,2]
[325368178,1714756233207,-333.35480154,0.000129,2]
[325368179,1714756233216,-5349.75972133,0.00012924,2]
[325368180,1714756233225,-5349.75972133,0.00012949,2]
[325368181,1714756233235,-5349.75972133,0.00012973,2]
[325368182,1714756233245,-1731.4935168,0.00012989,2]
[325368183,1714756233254,-2726.6697803,0.00012989,2]
[325368184,1714756233263,-9019.53071732,0.00012989,2]
[325368185,1714756233278,-2009.84515001,0.00012989,2]
[325368186,1714756233306,-3316.7913667,0.00012989,2]
[325368187,1714756233575,-2750.0,0.00012989,2]
[325368200,1714756238480,-4441.15477129,0.00012989,2]
[325368201,1714756238492,-376.30378219,0.00012989,2]
[325368202,1714756238504,-555.381,0.00012989,2]
[325368203,1714756238515,-14386.03393879,0.00012989,2]
[325368204,1714756238525,-2372.866462,0.00012991,2]
[325368205,1714756238535,-3014.2394073,0.00012991,2]
[325368206,1714756238545,-3736.6719609,0.00012991,2]
[325368207,1714756238554,-4746.6741415,0.00012991,2]
[325368208,1714756238564,-24832.29666375,0.00012991,2]
[325368209,1714756238577,-4604.90881487,0.00012991,2]
[325368210,1714756238590,-21069.53292198,0.00012991,2]
[325368211,1714756238599,-64158.4360749,0.00012991,2]
[325368212,1714756238608,-5349.75972133,0.00012998,2]
[325368213,1714756238617,-207.50090804,0.00012999,2]
[325368214,1714756238627,-5853.8102457,0.00012999,2]
[325368215,1714756238637,-2800053.69054507,0.00013,2]
[325368216,1714756238649,-423551.89926276,0.00013,2]
[325368217,1714756238690,-102652.62821901,0.00013,2]
[325368218,1714756238767,-346.49127393,0.00013,2]
[325368225,1714756240521,-298.53396409,0.00012999,2]
[325368226,1714756240735,-291.44554907,0.00012999,2]
[325368227,1714756240748,-310.91287071,0.00012999,2]
[325368228,1714756240759,-287.255,0.00012999,2]
[325368229,1714756241174,-4665.66286183,0.00012999,2]
[325368230,1714756241184,-302806.19129906,0.00013,2]
[325368233,1714756243488,-1236.2,0.00013,2]
[325368234,1714756243501,-533.34082628,0.00013,2]
[325368235,1714756243512,-15034.33035745,0.00013,2]
[325368236,1714756243522,-400.70588266,0.00013,2]
[325368237,1714756243535,-618.42438,0.00013,2]
[325368238,1714756243547,-620.28510931,0.00013,2]
[325368239,1714756243679,-5429.12216,0.00013,2]
[325368240,1714756243690,-397.00005046,0.00013,2]
[325368241,1714756243751,-1308.00000413,0.00013,2]
[325368242,1714756243763,-1241.12657236,0.00013,2]
[325368247,1714756246584,-335.60142443,0.000121,4]
[325368248,1714756246618,-164.39857557,0.000121,4]
[325368249,1714756246627,-432.95878548,0.000129,2]
[325368250,1714756246637,-3338.15274097,0.00012999,2]
[325368251,1714756246646,-24614.48989797,0.00013,2]
[325368252,1714756246740,-264.208,0.00013,2]
[325368253,1714756246751,-1130.02004929,0.00013,2]
[325368254,1714756312098,-5187.85189669,0.00010798,2]
[325368255,1714756326480,159.0,0.0002136,10]
[325368256,1714756326809,159.0,0.0002232,12]
[325368257,1714756327176,159.0,0.0002328,14]
[325368258,1714756327536,159.0,0.0002424,16]
[325368281,1714757286333,-150.0,0.00010797,2]
[325368282,1714757286355,-364.04229059,0.00010798,2]
[325368283,1714757286377,-3485.95770941,0.00010798,2]
[325368284,1714757287178,-1127.75104996,0.00010798,2]
[325368285,1714757287200,-622.20002294,0.00010798,2]
[325368286,1714757287222,-155.0,0.00010798,2]
[325368287,1714757287244,-326.04628581,0.00010798,2]
[325368288,1714757287265,-155.0,0.00010798,2]
[325368289,1714757287287,-200.76109034,0.00010798,2]
[325368290,1714757287308,-177.54622384,0.00010798,2]
[325368291,1714757287329,-1235.69532711,0.00010798,2]
[325368292,1714757287774,-3033.78509476,0.00010798,2]
[325368293,1714757287797,-332.22,0.00011703,2]
[325368294,1714757287820,-633.99490524,0.00011706,2]
[325368295,1714757288340,-4000.0,0.00011706,2]
[325368296,1714757288879,-4000.0,0.00011706,2]
[325368297,1714757289452,-4000.0,0.00011706,2]
[325368298,1714757289964,-4000.0,0.00011706,2]
[325368299,1714757290495,-3165.55509476,0.00011706,2]
[325368300,1714757290515,-200.0,0.00011761,2]
[325368301,1714757290535,-214.72,0.00011802,2]
[325368302,1714757290556,-419.72490524,0.0001182,2]
[325368303,1714757292501,-4000.0,0.0001182,2]
[325368304,1714757292758,-4000.0,0.0001182,2]
[325368305,1714757293580,-4000.0,0.0001182,2]
[325368306,1714757294123,-4000.0,0.0001182,2]
[325368307,1714757294280,-4000.0,0.0001182,2]
[325368308,1714757294890,-4000.0,0.0001182,2]
[325368309,1714757295259,-4000.0,0.0001182,2]
[325368310,1714757295849,-4000.0,0.0001182,2]
[325368311,1714757296283,-4000.0,0.0001182,2]
[325368312,1714757296805,-4000.0,0.0001182,2]
[325368313,1714757297380,-4000.0,0.0001182,2]
[325368314,1714757297886,-4000.0,0.0001182,2]
[325368315,1714757298437,-4000.0,0.0001182,2]
[325368316,1714757299003,-755.46509476,0.0001182,2]
[325368317,1714757316441,3244.53490524,0.00011777,2]
[325368318,1714757326038,-1871.33776921,0.00011777,2]
[325368319,1714757334341,2128.66223079,0.00011777,2]
[325368320,1714757334707,4000.0,0.00011777,2]
[325368321,1714757334730,4000.0,0.00011777,2]
[325368322,1714757334753,4000.0,0.00011777,2]
[325368323,1714757334774,4000.0,0.00011777,2]
[325368324,1714757334795,2057.71620656,0.00011777,2]
[325368346,1714757367177,250.0,0.00011802,2]
[325368347,1714757396303,1692.28379344,0.00011802,2]
[325368348,1714757396326,4000.0,0.00011802,2]
[325368349,1714757396348,4000.0,0.00011802,2]
[325368350,1714757396370,4000.0,0.00011802,2]
[325368374,1714757431692,-150.0,0.00010993,2]
[325368375,1714757431702,-8911.01094905,0.00011768,2]
[325368376,1714757431714,-854.8607206,0.00011768,2]
[325368377,1714757431726,-1205.85470828,0.00011768,2]
[325368378,1714757431784,-24478.06362207,0.00011768,2]
[325368379,1714757431793,-6516.70715715,0.00011802,2]
[325368380,1714757431806,-62450.0,0.00011802,2]
[325368381,1714757431818,-1135.31023447,0.00011802,2]
[325368382,1714757431830,-554.58560878,0.00011802,2]
[325368383,1714757431865,-481.93171248,0.00011802,2]
[325368384,1714757431885,-1661.1859856,0.00011802,2]
[325368385,1714757431896,-1241.95135298,0.00011802,2]
[325368386,1714757431907,-562.4996314,0.00011802,2]
[325368450,1714757437688,-411926.6612416,0.00011802,2]
[325368451,1714757437698,-157.94,0.00011856,2]
[325368452,1714757437707,-878.37,0.00011876,2]
[325368453,1714757437717,-1391.8,0.00011883,2]
[325368454,1714757437727,-157.94,0.00011904,2]
[325368455,1714757437736,-157.94,0.00011952,2]
[325368456,1714757437745,-168.0,0.00011983,2]
[325368457,1714757437755,-4096.72051149,0.00011985,2]
[325368458,1714757437764,-150.0,0.00011985,2]
[325368459,1714757437773,-157.94,0.00011999,2]
[325368460,1714757437783,-193.3,0.00012001,2]
[325368461,1714757437792,-499.99,0.00012001,2]
[325368462,1714757437802,-157.94,0.00012047,2]
[325368463,1714757437812,-225.96,0.00012075,2]
[325368464,1714757437822,-210.0,0.00012092,2]
[325368465,1714757437832,-157.94,0.00012094,2]
[325368466,1714757437842,-500.0,0.000121,4]
[325368467,1714757437851,-1000.0,0.000122,4]
[325368468,1714757437861,-166.22,0.00012205,2]
[325368469,1714757437870,-158.78,0.00012205,2]
[325368470,1714757437879,-1500.0,0.000123,4]
[325368471,1714757437888,-2100.0,0.000124,4]
[325368472,1714757437898,-2600.0,0.000125,4]
[325368473,1714757437907,-237.6,0.00012501,2]
[325368474,1714757437916,-500.0,0.000126,4]
[325368475,1714757437926,-500.0,0.000127,4]
[325368476,1714757437935,-500.0,0.000128,4]
[325368477,1714757437944,-2390.9475,0.000128,2]
[325368478,1714757437954,-150.0,0.00012827,2]
[325368479,1714757437963,-150.0,0.00012831,2]
[325368480,1714757437972,-101645.43470527,0.000129,2]
[325368481,1714757437981,-172.6980477,0.000129,2]
[325368482,1714757437990,-10000.0,0.000129,2]
[325368483,1714757438000,-500.0,0.000129,4]
[325368484,1714757438009,-288.63919032,0.000129,2]
[325368485,1714757438018,-197.72577535,0.000129,2]
[325368486,1714757438028,-500.0,0.00012935,2]
[325368487,1714757438038,-500.0,0.00012935,2]
[325368488,1714757438047,-500.0,0.00012935,2]
[325368489,1714757438056,-500.0,0.00012935,2]
[325368490,1714757438068,-560.9012,0.00012935,2]
[325368491,1714757438076,-1000.0,0.00012935,2]
[325368492,1714757438085,-1000.0,0.00012935,2]
[325368493,1714757438094,-1000.0,0.00012935,2]
[325368494,1714757438103,-1000.0,0.00012935,2]
[325368495,1714757438112,-1000.0,0.00012935,2]
[325368496,1714757438121,-1000.0,0.00012935,2]
[325368497,1714757438130,-1000.0,0.00012935,2]